bitfinex/quotes_BTCUSD_20251219
["timestamp","ask_amount","ask_price","bid_price","bid_amount"]
[1766169738045,0.58787,87050.0,87040.0,0.02294538]
[1766169738224,0.58787,87050.0,87049.0,0.0011978]
[1766169739656,0.06891896,87059.0,87049.0,0.0011978]
[1766169739657,0.29968,87059.0,87049.0,0.0011978]
[1766169739857,0.29968,87059.0,87040.0,0.02294538]
[1766169739858,0.2807,87061.0,87050.0,0.01148765]
[1766169740067,0.00576,87060.0,87049.0,0.05743883]
[1766169740248,0.00576,87060.0,87046.0,0.01148817]
[1766169740249,0.00576,87060.0,87048.0,0.05743916]
[1766169740629,0.00576,87060.0,87049.0,0.01148778]
[1766169740767,0.00576,87060.0,87049.0,0.06892655]
[1766169740970,0.2807,87061.0,87049.0,0.06892655]
[1766169740971,0.2807,87061.0,87050.0,0.01148765]
[1766169741283,0.2807,87069.0,87054.0,0.02294538]
[1766169741508,0.00576,87068.0,87054.0,0.02294538]
[1766169741945,0.30544,87068.0,87054.0,0.02294538]
[1766169742637,0.3743523,87068.0,87054.0,0.02294538]
[1766169742866,0.58038,87067.0,87054.0,0.02294538]
[1766169744157,0.58038,87067.0,87054.0,0.0344325]
[1766169744392,0.58038,87067.0,87054.0,0.09186809]
[1766169744618,0.58038,87067.0,87056.0,0.01148685]
[1766169744866,0.58038,87067.0,87055.0,0.01148699]
[1766169745099,0.58038,87067.0,87058.0,0.00091405]
[1766169745293,0.58038,87067.0,87054.0,0.0344325]
[1766169745735,0.29968,87066.0,87054.0,0.02294538]
[1766169745932,0.29968,87066.0,87055.0,0.01148699]
[1766169746131,0.29968,87066.0,87054.0,0.0344325]
[1766169746382,0.29968,87066.0,87055.0,0.00010858]
[1766169746588,0.58038,87066.0,87055.0,0.00010858]
[1766169746790,0.58038,87065.0,87055.0,0.00010858]
[1766169747412,0.00576,87064.0,87055.0,0.00010858]
[1766169748263,0.30544,87064.0,87055.0,5.8e-07]
[1766169748456,0.29968,87063.0,87055.0,5.8e-07]
[1766169748658,0.28646,87064.0,87055.0,5.8e-07]
[1766169748854,0.29968,87076.0,87059.0,0.22972705]
[1766169749059,0.29968,87076.0,87065.0,0.01148567]
[1766169749060,0.29968,87075.0,87065.0,0.01148567]
[1766169749284,0.29968,87075.0,87056.0,0.02294538]
[1766169749285,0.00576,87074.0,87069.0,0.05742518]
[1766169749491,0.00576,87074.0,87066.0,0.06891309]
[1766169749687,0.00576,87074.0,87071.0,0.01148488]
[1766169749885,0.58038,87083.0,87070.0,0.02294538]
[1766169750138,0.00576,87082.0,87072.0,0.01148474]
[1766169750363,0.00576,87082.0,87074.0,0.01148448]
[1766169750565,0.29968,87088.0,87073.0,0.0689073]
[1766169750566,0.00576,87084.0,87073.0,0.0689073]
[1766169750714,0.29968,87087.0,87077.0,0.01148408]
[1766169750970,0.29968,87087.0,87070.0,0.81674783]
[1766169750971,0.29968,87087.0,87081.0,0.01148356]
[1766169751175,0.29968,87087.0,87070.0,0.81674783]
[1766169751176,0.29968,87087.0,87075.0,0.0746655]
[1766169751491,0.29968,87087.0,87076.0,0.01148422]
[1766169751727,0.05740668,87098.0,87079.0,0.06890276]
[1766169751935,0.2807,87101.0,87088.0,0.06889581]
[1766169752157,0.2807,87101.0,87089.0,0.0114825]
[1766169752364,0.00576,87102.0,87090.0,0.01148237]
[1766169752513,0.00576,87102.0,87088.0,0.01148263]
[1766169752514,0.00576,87105.0,87088.0,0.01148263]
[1766169753066,0.00576,87105.0,87089.0,0.0114825]
[1766169753202,0.31116066,87103.0,87086.0,0.0114829]
[1766169753402,0.2807,87104.0,87088.0,0.01148263]
[1766169753702,0.2807,87104.0,87086.0,0.0114829]
[1766169753703,0.02294538,87102.0,87068.0,0.04025435]
[1766169753938,0.01148342,87082.0,87063.0,0.01148593]
[1766169754149,0.02294538,87102.0,87063.0,0.01]
[1766169754150,0.35331294,87079.0,87063.0,0.01]
[1766169754353,0.29278,87077.0,87063.0,0.01]
[1766169754784,0.30426408,87077.0,87063.0,0.01]
[1766169754984,0.01148422,87076.0,87063.0,0.01]
[1766169755195,0.29278,87089.0,87076.0,0.001099]
[1766169755403,0.29017,87088.0,87070.0,0.02294538]
[1766169755606,0.59443263,87088.0,87070.0,0.03443039]
[1766169755757,0.59443263,87088.0,87070.0,0.02294538]
[1766169755758,0.0114829,87086.0,87070.0,0.02294538]
[1766169755973,0.30426277,87087.0,87079.0,0.00025219]
[1766169756342,0.64608691,87087.0,87079.0,0.00025219]
[1766169756540,0.58867277,87087.0,87079.0,0.00025219]
[1766169756748,0.0114796,87111.0,87087.0,0.001099]
[1766169756951,0.01148158,87096.0,87086.0,0.01]
[1766169757173,0.01148184,87094.0,87079.0,0.00025219]
[1766169757375,0.57719,87093.0,87084.0,0.02294538]
[1766169757817,0.28441,87093.0,87084.0,0.02294538]
[1766169758051,0.29854,87099.0,87084.0,0.02294538]
[1766169758257,0.01148,87108.0,87084.0,0.02294538]
[1766169758258,0.00576,87104.0,87098.0,0.02294538]
[1766169758922,0.29278,87108.0,87098.0,0.02294538]
[1766169759130,0.29278,87108.0,87098.0,0.03442669]
[1766169759611,0.29278,87108.0,87100.0,0.01148105]
[1766169759809,0.29278,87108.0,87099.0,0.0688869]
[1766169760009,0.28441,87109.0,87099.0,0.07464682]
[1766169760368,0.01147815,87122.0,87111.0,0.0114796]
[1766169760369,0.00576,87121.0,87111.0,0.0114796]
[1766169760503,0.05743683,87132.0,87115.0,0.02294538]
[1766169760504,0.57719,87130.0,87115.0,0.02294538]
[1766169760703,0.28441,87130.0,87118.0,0.01147868]
[1766169760932,0.28441,87130.0,87117.0,0.01147881]
[1766169761131,0.28441,87130.0,87118.0,0.06887187]
[1766169761331,0.28441,87130.0,87117.0,0.01723881]
[1766169761332,0.00576,87132.0,87117.0,0.00576]
[1766169761532,0.01734537,87132.0,87117.0,0.00576]
[1766169761733,0.00586854,87132.0,87117.0,0.01723881]
[1766169761913,0.00586854,87132.0,87117.0,0.00576]
[1766169762487,0.01147591,87139.0,87122.0,0.01147815]
[1766169762694,0.00576,87140.0,87122.0,0.01147815]
[1766169762695,0.00576,87140.0,87123.0,0.00576]
[1766169762905,0.00576,87140.0,87129.0,0.02294538]
[1766169763742,0.00576,87140.0,87131.0,0.01147697]
[1766169763855,0.00576,87140.0,87130.0,0.00576]
[1766169764058,0.00576,87145.0,87130.0,0.00576]
[1766169764294,0.00576,87145.0,87132.0,0.01147683]
[1766169764494,0.00576,87145.0,87130.0,0.00576]
[1766169765179,0.01147565,87141.0,87130.0,0.00576]
[1766169765380,0.01147539,87143.0,87130.0,0.00576]
[1766169765606,0.01147578,87140.0,87130.0,0.00576]
[1766169765809,0.01147565,87141.0,87130.0,0.00576]
[1766169766006,0.01147578,87140.0,87130.0,0.00576]
[1766169766254,0.06885164,87144.0,87130.0,0.00576]
[1766169766487,0.30164512,87145.0,87130.0,0.00576]
[1766169766681,0.01147512,87145.0,87130.0,0.00576]
[1766169766903,0.00576,87150.0,87145.0,0.001099]
[1766169767128,0.0002,87152.0,87145.0,0.001099]
[1766169767336,0.0002,87152.0,87141.0,0.00576]
[1766169767544,0.05737308,87149.0,87143.0,0.02294538]
[1766169767749,0.01147499,87146.0,87143.0,0.02294538]
[1766169768087,0.0002,87152.0,87143.0,0.02294538]
[1766169768263,0.06884627,87151.0,87143.0,0.02294538]
[1766169768442,0.01147446,87150.0,87143.0,0.02294538]
[1766169768642,0.01147433,87151.0,87143.0,0.02294538]
[1766169769045,0.0002,87152.0,87143.0,0.02294538]
[1766169769683,0.00576,87158.0,87143.0,0.02294538]
[1766169769874,0.05737176,87151.0,87143.0,0.02294538]
[1766169770092,0.01147446,87150.0,87143.0,0.02294538]
[1766169770415,0.01147433,87151.0,87143.0,0.02294538]
[1766169770979,0.0114742,87152.0,87143.0,0.02294538]
[1766169771189,0.06884374,87154.0,87143.0,0.02294538]
[1766169771541,0.01147394,87154.0,87143.0,0.02294538]
[1766169771713,0.01147407,87153.0,87143.0,0.02294538]
[1766169771855,0.45879005,87186.0,87153.0,0.001099]
[1766169772063,0.05736922,87155.0,87153.0,0.001099]
[1766169772262,0.05736922,87155.0,87148.0,0.00576]
[1766169772263,0.0114742,87152.0,87148.0,0.00576]
[1766169772456,0.05732477,87153.0,87148.0,0.00576]
[1766169772658,0.01142827,87153.0,87148.0,0.00576]
[1766169772871,0.05736952,87155.0,87148.0,0.00576]
[1766169773097,0.00036165,87155.0,87148.0,0.00576]
[1766169773518,6.5e-07,87155.0,87148.0,0.00576]
[1766169774314,6.5e-07,87155.0,87148.0,0.01723473]
[1766169774771,0.01147446,87155.0,87148.0,0.00576]
[1766169774970,0.01183573,87148.0,87145.0,0.00576]
[1766169775176,0.06885325,87142.0,87130.0,0.01]
[1766169775393,0.29278,87143.0,87131.0,0.00576]
[1766169775638,0.30425539,87143.0,87131.0,0.00576]
[1766169775809,0.29278,87143.0,87131.0,0.00576]
[1766169777036,0.29854,87150.0,87134.0,0.01147657]
[1766169777301,0.00576,87150.0,87143.0,0.000738]
[1766169777464,0.00576,87150.0,87144.0,0.02294538]
[1766169778978,0.003882,87150.0,87144.0,0.02294538]
[1766169780770,6.5e-07,87155.0,87145.0,0.00576]
[1766169781627,0.05736971,87154.0,87145.0,0.004661]
[1766169781824,6.5e-07,87155.0,87145.0,0.004661]
[1766169783787,0.0114742,87152.0,87145.0,0.004661]
[1766169783995,0.01147473,87148.0,87145.0,0.004661]
[1766169784200,0.0114746,87149.0,87145.0,0.004661]
[1766169784397,0.01147433,87151.0,87145.0,0.004661]
[1766169784609,0.0114742,87152.0,87145.0,0.004661]
[1766169784803,0.01147394,87154.0,87145.0,0.004661]
[1766169785006,0.06884362,87155.0,87146.0,0.02294538]
[1766169785206,0.06884369,87154.0,87145.0,0.004661]
[1766169785724,0.05736976,87155.0,87145.0,0.004661]
[1766169785919,6.5e-07,87155.0,87146.0,0.02294538]
[1766169786497,6.5e-07,87155.0,87152.0,0.0114742]
[1766169786698,6.5e-07,87155.0,87153.0,0.05737009]
[1766169786900,6.5e-07,87155.0,87152.0,0.0114742]
[1766169786901,0.57893,87170.0,87156.0,0.01147367]
[1766169787102,0.00576,87168.0,87160.0,0.02294538]
[1766169788270,0.00010845,87170.0,87168.0,0.001099]
[1766169788559,0.00010845,87170.0,87166.0,0.06883356]
[1766169788766,0.04596,87179.0,87166.0,0.06883356]
[1766169788767,0.27348,87184.0,87169.0,0.05735919]
[1766169788937,0.30545,87188.0,87175.0,0.02294538]
[1766169789163,0.01722959,87187.0,87175.0,0.02294538]
[1766169789377,0.01146986,87185.0,87175.0,0.02294538]
[1766169789668,0.01146973,87186.0,87175.0,0.02294538]
[1766169789912,0.00576,87187.0,87176.0,0.00576]
[1766169790626,0.0002,87190.0,87182.0,0.01147025]
[1766169790826,0.27348,87199.0,87189.0,0.02294538]
[1766169791026,0.01733643,87199.0,87189.0,0.02294538]
[1766169791233,0.00586841,87199.0,87189.0,0.02294538]
[1766169791440,0.00010841,87199.0,87189.0,0.02294538]
[1766169791862,0.00010841,87199.0,87179.0,0.22941197]
[1766169791863,0.01147012,87183.0,87163.0,0.06145368]
[1766169792061,0.01147091,87177.0,87165.0,0.01]
[1766169792218,0.01147065,87179.0,87174.0,0.02294538]
[1766169792631,0.3423032,87180.0,87174.0,0.02294538]
[1766169792970,0.05735326,87179.0,87174.0,0.02294538]
[1766169793144,0.06882493,87178.0,87174.0,0.02294538]
[1766169793345,0.06882391,87179.0,87174.0,0.02294538]
[1766169793551,0.01147065,87179.0,87174.0,0.02294538]
[1766169793778,0.34230313,87180.0,87174.0,0.02294538]
[1766169793779,0.01147025,87182.0,87174.0,0.02294538]
[1766169794190,0.05735194,87181.0,87174.0,0.02294538]
[1766169794383,0.01147012,87183.0,87174.0,0.02294538]
[1766169794709,0.01147091,87177.0,87174.0,0.02294538]
[1766169794917,0.01147117,87175.0,87171.0,0.00576]
[1766169795324,0.28495038,87181.0,87171.0,0.00576]
[1766169795452,0.05735522,87177.0,87171.0,0.00576]
[1766169795697,0.01147104,87176.0,87171.0,0.00576]
[1766169796307,0.30545,87176.0,87171.0,0.00576]
[1766169796527,0.01147117,87175.0,87171.0,0.00576]
[1766169796729,0.06882711,87175.0,87171.0,0.00576]
[1766169796935,0.06882711,87175.0,87160.0,0.06886538]
[1766169796936,0.30545,87176.0,87166.0,0.00576]
[1766169797140,0.30545,87176.0,87164.0,0.00576]
[1766169797141,0.01147117,87175.0,87164.0,0.00576]
[1766169797326,0.01147117,87175.0,87165.0,0.00576]
[1766169797809,0.31692104,87176.0,87165.0,0.00576]
[1766169798016,0.30545,87176.0,87165.0,0.00576]
[1766169798193,0.06882392,87179.0,87165.0,0.00576]
[1766169798349,0.00576,87180.0,87175.0,0.02294538]
[1766169799559,0.01147078,87178.0,87175.0,0.02294538]
[1766169799801,0.00576,87180.0,87149.0,0.02294538]
[1766169799802,0.01147144,87173.0,87149.0,0.02294538]
[1766169799968,0.0114717,87171.0,87160.0,0.02294538]
[1766169800149,0.0114717,87171.0,87161.0,0.00576]
[1766169800355,0.01147196,87169.0,87160.0,0.02294538]
[1766169800563,0.01147196,87169.0,87146.0,0.02294538]
[1766169800564,0.01147341,87158.0,87146.0,0.02294538]
[1766169800762,0.64777444,87153.0,87147.0,0.00576]
[1766169801035,0.01147446,87150.0,87147.0,0.00576]
[1766169801259,0.01147446,87150.0,87144.0,0.00576]
[1766169801580,0.01147446,87150.0,87144.0,0.00612165]
[1766169801705,0.0573717,87151.0,87144.0,0.00612165]
[1766169801706,0.01147433,87151.0,87144.0,0.00612165]
[1766169801917,0.0114742,87152.0,87145.0,0.02294538]
[1766169802415,0.01147446,87150.0,87145.0,0.02294538]
[1766169802695,0.01147433,87151.0,87145.0,0.02294538]
[1766169803238,0.01147446,87150.0,87145.0,0.02294538]
[1766169803442,0.01147433,87151.0,87145.0,0.02294538]
[1766169803904,0.06884587,87152.0,87145.0,0.02294538]
[1766169804109,0.30545,87151.0,87145.0,0.02294538]
[1766169804567,0.31692433,87151.0,87145.0,0.02294538]
[1766169804766,0.30545,87151.0,87145.0,0.02294538]
[1766169804990,0.304351,87151.0,87145.0,0.02294538]
[1766169805165,0.37319747,87151.0,87145.0,0.02294538]
[1766169805348,0.31582533,87151.0,87145.0,0.02294538]
[1766169805550,0.2849542,87152.0,87145.0,0.02294538]
[1766169806371,0.34232526,87152.0,87144.0,0.00612165]
[1766169806569,0.06884496,87154.0,87144.0,0.00612165]
[1766169806770,0.01147407,87153.0,87145.0,0.02294538]
[1766169806940,0.01147394,87154.0,87145.0,0.02294538]
[1766169807359,0.31542367,87156.0,87145.0,0.02294538]
[1766169807360,0.30395,87156.0,87145.0,0.02294538]
[1766169807786,0.30395,87156.0,87145.0,0.0344205]
[1766169807962,0.30395,87156.0,87145.0,0.02294538]
[1766169809040,0.59585,87154.0,87145.0,0.02870538]
[1766169809487,0.2919,87154.0,87145.0,0.02870538]
[1766169809694,0.2919,87154.0,87144.0,0.00036165]
[1766169809695,0.30395,87151.0,87140.0,0.00576]
[1766169810047,0.30431143,87151.0,87140.0,0.00576]
[1766169810236,0.01147446,87150.0,87140.0,0.00576]
[1766169810642,0.00036143,87151.0,87140.0,0.00576]
[1766169811643,0.01147446,87150.0,87140.0,0.00576]
[1766169811868,0.01147446,87150.0,87135.0,0.03294538]
[1766169811869,0.30395,87149.0,87135.0,0.03870538]
[1766169812242,0.3154246,87149.0,87135.0,0.03870538]
[1766169812457,0.30395,87149.0,87135.0,0.03870538]
[1766169813056,0.01147473,87148.0,87135.0,0.03870538]
[1766169813261,0.01147539,87143.0,87135.0,0.02870538]
[1766169813478,0.01147539,87143.0,87135.0,0.02760638]
[1766169813904,0.00036143,87151.0,87135.0,0.00576]
[1766169814160,0.00036143,87151.0,87122.0,0.01]
[1766169814161,0.29313,87133.0,87122.0,0.01]
[1766169814358,0.01147697,87131.0,87123.0,0.00576]
[1766169814524,0.0114767,87133.0,87123.0,0.00576]
[1766169814737,0.26909,87134.0,87123.0,0.00576]
[1766169814932,0.28056657,87134.0,87123.0,0.00576]
[1766169815135,0.26909,87134.0,87123.0,0.00576]
[1766169815750,0.22949476,87148.0,87123.0,0.00576]
[1766169815751,0.35050302,87149.0,87134.0,0.001099]
[1766169815964,0.29313,87149.0,87141.0,0.02294538]
[1766169816325,0.29313,87149.0,87132.0,0.01723683]
[1766169816326,0.26909,87148.0,87134.0,0.01147657]
[1766169816529,0.29313,87147.0,87142.0,0.02294538]
[1766169816757,0.29313,87146.0,87135.0,0.02294538]
[1766169816919,0.29313,87145.0,87135.0,0.02294538]
[1766169817324,0.26909,87145.0,87135.0,0.02294538]
[1766169817527,0.29313,87144.0,87135.0,0.02294538]
[1766169818313,0.00576,87148.0,87135.0,0.02294538]
[1766169818475,0.01147565,87141.0,87135.0,0.02294538]
[1766169818681,0.01147591,87139.0,87132.0,0.00576]
[1766169818882,0.06885947,87134.0,87129.0,0.00576]
[1766169819089,0.01147657,87134.0,87129.0,0.00576]
[1766169819295,0.0114767,87133.0,87129.0,0.00576]
[1766169819457,0.36198866,87135.0,87129.0,0.00576]
[1766169819664,0.01147657,87134.0,87129.0,0.00576]
[1766169819909,0.05738354,87133.0,87129.0,0.00576]
[1766169820113,0.01147683,87132.0,87127.0,0.00576]
[1766169820321,0.30460644,87135.0,87127.0,0.00576]
[1766169820322,0.29313,87135.0,87127.0,0.00576]
[1766169820673,0.30460644,87135.0,87127.0,0.00576]
[1766169820847,0.01147657,87134.0,87127.0,0.00576]
[1766169820978,0.29313,87133.0,87127.0,0.00576]
[1766169821605,0.01147657,87134.0,87127.0,0.00576]
[1766169822180,0.06885955,87134.0,87127.0,0.00576]
[1766169822597,0.26909,87136.0,87127.0,0.00576]
[1766169822842,0.01147644,87135.0,87127.0,0.00576]
[1766169823752,0.63107809,87136.0,87127.0,0.00576]
[1766169823962,0.29313,87141.0,87135.0,0.02404438]
[1766169824165,0.30460591,87139.0,87135.0,0.001099]
[1766169824357,0.29313,87137.0,87135.0,0.001099]
[1766169824552,0.28056631,87136.0,87127.0,0.00576]
[1766169824712,0.29313,87135.0,87127.0,0.00576]
[1766169825603,0.26909,87136.0,87127.0,0.00576]
[1766169826010,0.05738546,87131.0,87127.0,0.00576]
[1766169826219,0.28056697,87131.0,87127.0,1e-06]
[1766169826435,0.33795225,87131.0,87127.0,1e-06]
[1766169826640,0.26909,87131.0,87127.0,1e-06]
[1766169826841,0.0114771,87130.0,87127.0,1e-06]
[1766169827077,0.33795219,87131.0,87127.0,1e-06]
[1766169827286,0.32647515,87131.0,87127.0,1e-06]
[1766169827488,0.32647515,87131.0,87113.0,0.16017934]
[1766169827489,0.06535786,87131.0,87113.0,0.1487]
[1766169827663,0.36200432,87116.0,87105.0,0.01]
[1766169827863,0.29313,87116.0,87105.0,0.01]
[1766169828998,0.26909,87117.0,87105.0,0.01010854]
[1766169829797,0.32648415,87117.0,87105.0,0.01010854]
[1766169830001,0.01147921,87114.0,87105.0,0.00010854]
[1766169830319,0.01147921,87114.0,87104.0,0.00576]
[1766169830320,0.26909,87107.0,87091.0,0.01]
[1766169830523,0.01147855,87119.0,87099.0,0.01148118]
[1766169830660,0.01147855,87119.0,87093.0,0.05529]
[1766169830661,0.28056947,87112.0,87094.0,0.07889096]
[1766169830896,0.28056947,87112.0,87096.0,0.02148158]
[1766169830897,0.00576,87111.0,87096.0,0.02148158]
[1766169831121,0.56222,87110.0,87097.0,0.00576]
[1766169831357,0.57370052,87104.0,87097.0,0.00576]
[1766169831555,0.01148026,87106.0,87084.0,0.05741567]
[1766169831556,0.56222,87099.0,87084.0,0.05741567]
[1766169831757,0.01724066,87103.0,87079.0,0.00025219]
[1766169831758,0.01148211,87092.0,87079.0,0.00025219]
[1766169831989,0.06889541,87089.0,87080.0,0.00576]
[1766169832187,0.00199998,87130.0,87079.0,0.00025219]
[1766169832188,0.28057316,87084.0,87079.0,2.19e-06]
[1766169832391,0.0114829,87086.0,87079.0,2.19e-06]
[1766169832392,0.57370342,87082.0,87079.0,2.19e-06]
[1766169832617,0.56222,87080.0,87079.0,2.19e-06]
[1766169833071,0.56222,87079.0,87067.0,0.00576]
[1766169833253,0.41876559,87079.0,87072.0,0.02294538]
[1766169835248,0.41766659,87079.0,87072.0,0.02294538]
[1766169836571,0.41766659,87079.0,87068.0,0.01]
[1766169836572,0.26909,87077.0,87068.0,0.01]
[1766169838530,0.26909,87077.0,87071.0,0.00025216]
[1766169839148,0.2932383,87079.0,87058.0,0.0004]
[1766169839149,0.01148514,87069.0,87058.0,0.0004]
[1766169839352,0.01148514,87069.0,87030.0,0.22394537]
[1766169839353,0.01148897,87040.0,87020.0,0.01149161]
[1766169839523,0.26909,87045.0,87020.0,0.20873]
[1766169839769,0.05744044,87047.0,87020.0,0.20873]
[1766169839770,0.05172,87044.0,87032.0,0.20873]
[1766169839979,0.01148817,87046.0,87032.0,0.20873]
[1766169840323,0.29313,87050.0,87021.0,0.00576]
[1766169840324,0.01148989,87033.0,87021.0,0.00576]
[1766169840490,0.01148923,87038.0,87026.0,0.00040239]
[1766169840491,0.001099,87032.0,87026.0,0.00040239]
[1766169840667,0.06893559,87038.0,87026.0,0.00040239]
[1766169840668,0.01148963,87035.0,87026.0,0.00040239]
[1766169840873,0.01148976,87034.0,87026.0,0.00040239]
[1766169841127,0.26909,87039.0,87026.0,0.00040239]
[1766169841334,0.35057471,87041.0,87026.0,0.00040239]
[1766169841335,0.05744444,87041.0,87026.0,0.00040239]
[1766169841584,0.0114891,87039.0,87026.0,0.00040239]
[1766169841790,0.00576,87042.0,87030.0,0.15139]
[1766169841986,0.29313,87058.0,87038.0,0.14563]
[1766169841987,0.06892143,87056.0,87038.0,0.14563]
[1766169842158,0.00576,87055.0,87040.0,0.14563]
[1766169842561,0.07468217,87055.0,87040.0,0.14563]
[1766169842763,0.01148738,87052.0,87040.0,0.14563]
[1766169843029,0.0114891,87039.0,87028.0,0.01]
[1766169843305,0.00576,87040.0,87028.0,0.01]
[1766169843511,0.0114891,87039.0,87028.0,0.01]
[1766169843715,0.01148976,87034.0,87024.0,0.14634]
[1766169843949,0.00576,87040.0,87026.0,3.9e-07]
[1766169843950,0.05745343,87027.0,87026.0,3.9e-07]
[1766169844154,0.0058,87027.0,87026.0,3.9e-07]
[1766169844930,0.06894299,87029.0,87026.0,3.9e-07]
[1766169845161,0.0058,87027.0,87026.0,0.00141926]
[1766169845407,0.005398,87027.0,87026.0,0.00141926]
[1766169845645,0.04596,87040.0,87026.0,0.00141926]
[1766169845826,0.22974417,87054.0,87026.0,0.00141926]
[1766169845827,0.65572781,87061.0,87041.0,0.22977677]
[1766169845974,0.01728633,87060.0,87044.0,0.15761]
[1766169846154,0.046,87066.0,87044.0,0.15761]
[1766169846155,0.0058,87059.0,87044.0,0.15761]
[1766169846359,0.01148619,87061.0,87044.0,0.15761]
[1766169846633,0.01148567,87065.0,87044.0,0.15761]
[1766169846634,0.0058,87060.0,87044.0,0.15761]
[1766169846847,0.62121,87066.0,87053.0,0.02294538]
[1766169847051,0.29459,87066.0,87053.0,0.02294538]
[1766169847165,0.0058,87065.0,87053.0,0.02294538]
[1766169847377,0.01728567,87065.0,87053.0,0.02294538]
[1766169847808,0.01148633,87060.0,87049.0,0.14774]
[1766169848006,0.00036111,87060.0,87049.0,0.14774]
[1766169850333,0.00036111,87060.0,87053.0,0.02294538]
[1766169851452,1.11e-06,87060.0,87055.0,0.14594]
[1766169854253,1.11e-06,87060.0,87059.0,0.14462]
[1766169854839,1.11e-06,87060.0,87059.0,0.143521]
[1766169856980,1.11e-06,87060.0,87059.0,0.14389928]
[1766169859329,1.11e-06,87060.0,87059.0,0.20133159]
[1766169860004,0.05741621,87084.0,87059.0,0.20133159]
[1766169860005,0.01728422,87076.0,87063.0,0.14093]
[1766169860236,0.0059083,87076.0,87069.0,0.02294538]
[1766169861933,0.0059083,87076.0,87063.0,0.1411822]
[1766169861934,0.01148435,87075.0,87063.0,0.1411822]
[1766169862113,0.01148501,87070.0,87063.0,0.0002522]
[1766169862288,0.01148514,87069.0,87063.0,0.0002522]
[1766169862491,0.0059083,87076.0,87067.0,0.02294538]
[1766169865235,0.046,87089.0,87076.0,0.001099]
[1766169865488,0.01148158,87096.0,87067.0,0.02294538]
[1766169865489,0.00576,87088.0,87075.0,0.07774609]
[1766169865696,0.31508171,87095.0,87075.0,0.0089483]
[1766169865900,0.01148224,87091.0,87075.0,0.0089483]
[1766169866094,0.00576,87090.0,87075.0,0.0089483]
[1766169866414,0.0114825,87089.0,87075.0,0.0089483]
[1766169866611,0.00576,87090.0,87075.0,0.0089483]
[1766169866816,0.00576,87090.0,87081.0,0.02294538]
[1766169869212,0.01148395,87078.0,87075.0,0.0001083]
[1766169869413,0.01148395,87078.0,87059.0,0.04264184]
[1766169869414,0.0746651,87077.0,87065.0,0.01]
[1766169869613,0.06890626,87075.0,87067.0,0.02294538]
[1766169869769,0.01148461,87073.0,87067.0,0.02294538]
[1766169869979,0.01148435,87075.0,87057.0,0.046]
[1766169869980,0.01148501,87070.0,87057.0,0.046]
[1766169870175,0.01148501,87070.0,87053.0,0.03085538]
[1766169870176,0.30936,87069.0,87058.0,0.01]
[1766169870406,0.01148527,87068.0,87053.0,0.02870538]
[1766169870614,0.0689127,87067.0,87053.0,0.02870538]
[1766169870770,0.05742878,87065.0,87053.0,0.02870538]
[1766169870961,0.05742878,87065.0,87053.0,0.02294538]
[1766169870962,0.01148633,87060.0,87053.0,0.02294538]
[1766169871187,0.01148633,87060.0,87047.0,0.00791]
[1766169871188,0.01148633,87060.0,87047.0,0.0058]
[1766169871397,0.68015696,87062.0,87047.0,0.0058]
[1766169871749,0.61124,87062.0,87053.0,0.02294538]
[1766169871953,0.30764,87062.0,87053.0,0.02294538]
[1766169872092,0.3036,87061.0,87053.0,0.02294538]
[1766169873326,0.0058,87062.0,87053.0,0.02294538]
[1766169875183,0.0058,87062.0,87047.0,0.0058]
[1766169875316,0.0058,87062.0,87053.0,0.02294538]
[1766169876556,0.0058,87061.0,87053.0,0.02294538]
[1766169881045,0.00576,87065.0,87063.0,0.05742962]
[1766169881250,0.00576,87066.0,87064.0,0.06891481]
[1766169881381,0.00576,87066.0,87062.0,0.06891518]
[1766169881592,0.00576,87066.0,87058.0,0.01148659]
[1766169881789,0.61855848,87077.0,87062.0,0.06891578]
[1766169881991,0.00010848,87077.0,87067.0,0.02294538]
[1766169882217,0.00576,87076.0,87067.0,0.02294538]
[1766169883103,0.00576,87075.0,87067.0,0.02294538]
[1766169884158,0.00576,87074.0,87068.0,0.01148527]
[1766169884381,0.00576,87079.0,87075.0,0.01148435]
[1766169884596,0.00576,87085.0,87083.0,0.02294538]
[1766169886135,0.31585,87101.0,87085.0,0.001099]
[1766169886380,0.31585,87099.0,87085.0,0.001099]
[1766169886568,0.61845,87099.0,87084.0,0.01148316]
[1766169886990,0.61845,87099.0,87085.0,0.01148303]
[1766169887189,0.61845,87099.0,87084.0,0.06889893]
[1766169887351,0.61845,87099.0,87083.0,0.02294538]
[1766169887548,0.62993118,87099.0,87083.0,0.02294538]
[1766169887746,0.68733712,87099.0,87083.0,0.02294538]
[1766169888543,0.61845,87098.0,87083.0,0.02294538]
[1766169888904,0.22959052,87112.0,87087.0,0.01148277]
[1766169889076,0.22959052,87112.0,87097.0,0.03442683]
[1766169889077,0.046,87111.0,87097.0,0.03442683]
[1766169889421,0.00576,87110.0,87097.0,0.03442683]
[1766169889647,0.00576,87110.0,87097.0,0.02294538]
[1766169890508,0.00576,87109.0,87097.0,0.02294538]
[1766169891119,0.0114796,87111.0,87097.0,0.02294538]
[1766169891328,0.00576,87110.0,87097.0,0.02294538]
[1766169891945,0.32743799,87112.0,87097.0,0.02294538]
[1766169892150,0.00576,87109.0,87097.0,0.02294538]
[1766169892716,0.49357908,87130.0,87097.0,0.02294538]
[1766169892717,0.31585,87115.0,87109.0,0.001099]
[1766169892931,0.31585,87115.0,87102.0,0.02294538]
[1766169892932,0.61845,87114.0,87102.0,0.02294538]
[1766169893147,0.61845,87114.0,87102.0,0.03453469]
[1766169894354,0.61845,87114.0,87103.0,0.01148066]
[1766169894557,0.61845,87114.0,87102.0,0.0230539]
[1766169894758,0.06887172,87119.0,87102.0,0.0230539]
[1766169894759,0.00576,87113.0,87102.0,0.00010852]
[1766169894976,0.00576,87112.0,87102.0,0.00010852]
[1766169895746,0.00576,87112.0,87102.0,0.00904852]
[1766169896606,0.00576,87112.0,87102.0,0.02052931]
[1766169896929,0.00576,87112.0,87103.0,0.01148066]
[1766169897086,0.3026,87118.0,87109.0,0.01147987]
[1766169897308,0.00576,87117.0,87107.0,0.0688806]
[1766169897648,0.00576,87117.0,87109.0,0.01147987]
[1766169897849,0.00576,87117.0,87110.0,0.01147973]
[1766169898056,0.31585,87122.0,87109.0,0.01147987]
[1766169898200,0.00576,87121.0,87105.0,0.05740141]
[1766169898404,0.01723828,87121.0,87104.0,0.01148052]
[1766169898803,0.00576,87121.0,87105.0,0.01148039]